"Anno";"Comp./Res.";"Tipo";"Data Mov.";"Progr.";"Causale";"Capitolo";"Articolo";"DebitoreFornitore";"Importo";"Iva sp";"Inps";"Irpef";"Netto";"Modalita Pagamento";"ValidoAnnullato";"Note";"Anno imp. /acc.";"Imp. /Acc."
"2023";"COMPETENZA";"Mandato";"28/09/2023";"430";"Pagamento fattura n.663 del 27/09/2023  - Rif. Reversale n. 686";"20 - Spese di rappresentanza";"0 - Spese di rappresentanza";"TELEQUATTRO SRL A SOCIO UNICO ";"2.033,50";"366,70";"-";"0,00";"1.666,80";"BONIFICO BANCARIO";"Valido";"-";"2023";"401"
"2023";"COMPETENZA";"Mandato";"27/09/2023";"429";"IRAP SETTEMBRE";"13 - Contributi previdenziali e assistenziali";"0 - Contributi previdenziali e assistenziali";"AGENZIA DELLE ENTRATE  ";"662,15";"-";"0,00";"0,00";"662,15";"MODELLO F 24";"Valido";"-";"2023";"400"
"2023";"COMPETENZA";"Mandato";"27/09/2023";"428";"INPDAP SETTEMBRE";"13 - Contributi previdenziali e assistenziali";"0 - Contributi previdenziali e assistenziali";"AGENZIA DELLE ENTRATE  ";"7,80";"-";"0,00";"0,00";"7,80";"MODELLO F 24";"Valido";"-";"2023";"399"
"2023";"COMPETENZA";"Mandato";"27/09/2023";"427";"INPS SETTEMBRE";"13 - Contributi previdenziali e assistenziali";"0 - Contributi previdenziali e assistenziali";"AGENZIA DELLE ENTRATE  ";"1.854,80";"-";"0,00";"0,00";"1.854,80";"MODELLO F 24";"Valido";"-";"2023";"398"
"2023";"COMPETENZA";"Mandato";"27/09/2023";"426";"INPS STIPENDI SETTEMBRE - VINCOLATO A REVERSALI 658, 660, 662";"51 - Ritenute previdenziali e assistenziali lavoro dipendente";"0 - Ritenute previdenziali e assistenziali lavoro dipendente";"AGENZIA DELLE ENTRATE  ";"511,89";"-";"0,00";"0,00";"511,89";"MODELLO F 24";"Valido";"-";"2023";"397"
"2023";"COMPETENZA";"Mandato";"27/09/2023";"425";"IRPEF STIPENDI SETTEMBRE - VINCOLATO A REVERSALI 659, 661, 663";"47 - Ritenute erariali per lavoro dipendente";"0 - Ritenute erariali per lavoro dipendente";"AGENZIA DELLE ENTRATE  ";"1.929,12";"-";"0,00";"0,00";"1.929,12";"MODELLO F 24";"Valido";"-";"2023";"396"
"2023";"COMPETENZA";"Mandato";"25/09/2023";"424";"IVA SPLIT PAYMENT SU FATT. 8D00156894 - TELECOMA ITALIA SPA - VINCOLATO A REVERSALE 678";"53 - Ritenute per conto terzi";"0 - Ritenute per conto terzi";"AGENZIA DELLE ENTRATE  ";"33,31";"-";"0,00";"0,00";"33,31";"MODELLO F 24";"Valido";"-";"2023";"395"
"2023";"COMPETENZA";"Mandato";"25/09/2023";"423";"IVA SPLIT PAYMENT SU FATT. 8D001577498 - TELECOM ITALIA SPA - VINCOLATO A REVERSALE 677";"53 - Ritenute per conto terzi";"0 - Ritenute per conto terzi";"AGENZIA DELLE ENTRATE  ";"24,00";"-";"0,00";"0,00";"24,00";"MODELLO F 24";"Valido";"-";"2023";"394"
"2023";"COMPETENZA";"Mandato";"25/09/2023";"422";"IVA SPLIT PAYMENT SU FATT. 8D00157752 - TELECOMA ITALIA SPA - VINCOLATO A REVERSALE 676";"53 - Ritenute per conto terzi";"0 - Ritenute per conto terzi";"AGENZIA DELLE ENTRATE  ";"30,80";"-";"0,00";"0,00";"30,80";"MODELLO F 24";"Valido";"-";"2023";"393"
"2023";"COMPETENZA";"Mandato";"25/09/2023";"421";"RITENUTA D'ACCONTO SU FATT. 07/2023 - AVV. PIERO LUGNANI - VINCOLATO A REVERSALE 675";"46 - Ritenute erariali per lavoro autonomo";"0 - Ritenute erariali per lavoro autonomo";"AGENZIA DELLE ENTRATE  ";"736,00";"-";"0,00";"0,00";"736,00";"MODELLO F 24";"Valido";"-";"2023";"392"
"2023";"COMPETENZA";"Mandato";"25/09/2023";"420";"IVA SPLIT PAYMENT SU FATT. FT000480 - INFO.ERA SRL - VINCOLATO A REVERSALE 670";"53 - Ritenute per conto terzi";"0 - Ritenute per conto terzi";"AGENZIA DELLE ENTRATE  ";"115,50";"-";"0,00";"0,00";"115,50";"MODELLO F 24";"Valido";"-";"2023";"391"
"2023";"COMPETENZA";"Mandato";"25/09/2023";"419";"RITENUTA D'ACCONTO SU FATT. 344/00/2023 - DI MAURO TAMAI OPARA COMMERCIALISTI ASSOCIATI - VINCOLATO A REVERSALE 669";"46 - Ritenute erariali per lavoro autonomo";"0 - Ritenute erariali per lavoro autonomo";"AGENZIA DELLE ENTRATE  ";"122,00";"-";"0,00";"0,00";"122,00";"MODELLO F 24";"Valido";"-";"2023";"390"
"2023";"COMPETENZA";"Mandato";"25/09/2023";"418";"IVA SPLIT PAYMENT SU FATT. 412313918482 - HERA COMM. SRL - VINCOLATO A REVERSALE 668";"53 - Ritenute per conto terzi";"0 - Ritenute per conto terzi";"AGENZIA DELLE ENTRATE  ";"1,49";"-";"0,00";"0,00";"1,49";"MODELLO F 24";"Valido";"-";"2023";"389"
"2023";"COMPETENZA";"Mandato";"25/09/2023";"417";"Pagamento fattura n.8D00156894 del 10/08/2023  - Rif. Reversale n. 678";"27 - Spese telefoniche, fax e collegamento Internet";"0 - Spese telefoniche, fax e collegamento Internet";"TELECOM ITALIA S.P.A.  ";"33,31";"33,31";"-";"0,00";"0,00";"CASSA";"Valido";"-";"2023";"388"
"2023";"COMPETENZA";"Mandato";"25/09/2023";"416";"Pagamento fattura n.8D00156894 del 10/08/2023 ";"27 - Spese telefoniche, fax e collegamento Internet";"0 - Spese telefoniche, fax e collegamento Internet";"TELECOM ITALIA S.P.A.  ";"151,39";"0,00";"-";"0,00";"151,39";"REGOLARIZZAZIONE";"Valido";"-";"2023";"388"
"2023";"COMPETENZA";"Mandato";"25/09/2023";"415";"Pagamento fattura n.8D00157748 del 10/08/2023  - Rif. Reversale n. 677";"27 - Spese telefoniche, fax e collegamento Internet";"0 - Spese telefoniche, fax e collegamento Internet";"TELECOM ITALIA S.P.A.  ";"24,00";"24,00";"-";"0,00";"0,00";"CASSA";"Valido";"-";"2023";"387"
"2023";"COMPETENZA";"Mandato";"25/09/2023";"414";"Pagamento fattura n.8D00157748 del 10/08/2023 ";"27 - Spese telefoniche, fax e collegamento Internet";"0 - Spese telefoniche, fax e collegamento Internet";"TELECOM ITALIA S.P.A.  ";"109,07";"0,00";"-";"0,00";"109,07";"REGOLARIZZAZIONE";"Valido";"-";"2023";"387"
"2023";"COMPETENZA";"Mandato";"25/09/2023";"413";"Pagamento fattura n.8D00157752 del 10/08/2023  - Rif. Reversale n. 676";"27 - Spese telefoniche, fax e collegamento Internet";"0 - Spese telefoniche, fax e collegamento Internet";"TELECOM ITALIA S.P.A.  ";"30,80";"30,80";"-";"0,00";"0,00";"CASSA";"Valido";"-";"2023";"386"
"2023";"COMPETENZA";"Mandato";"25/09/2023";"412";"Pagamento fattura n.8D00157752 del 10/08/2023 ";"27 - Spese telefoniche, fax e collegamento Internet";"0 - Spese telefoniche, fax e collegamento Internet";"TELECOM ITALIA S.P.A.  ";"140,00";"0,00";"-";"0,00";"140,00";"REGOLARIZZAZIONE";"Valido";"-";"2023";"386"
"2023";"COMPETENZA";"Mandato";"25/09/2023";"411";"Pagamento fattura n.07/2023 del 22/09/2023  - Rif. Reversale n. 675";"32 - Spese legali, consulenza del lavoro, R.S.P.P.";"0 - Spese legali, consulenza del lavoro, R.S.P.P.";"AVV. PIERO LUGNANI  ";"4.669,18";"0,00";"-";"736,00";"3.933,18";"BONIFICO BANCARIO";"Valido";"-";"2023";"385"
"2023";"COMPETENZA";"Mandato";"25/09/2023";"410";"Pagamento fattura n.FT000480 del 31/08/2023  - Rif. Reversale n. 670";"18 - Spese gestione fotocopiatrice, fax e sistema informatico";"0 - Spese gestione fotocopiatrice, fax e sistema informatico";"INFO.ERA SRL  ";"640,50";"115,50";"-";"0,00";"525,00";"BONIFICO BANCARIO";"Valido";"-";"2023";"384"
"2023";"COMPETENZA";"Mandato";"25/09/2023";"409";"Pagamento fattura n.344/00/2023 del 15/09/2023  - Rif. Reversale n. 669";"32 - Spese legali, consulenza del lavoro, R.S.P.P.";"0 - Spese legali, consulenza del lavoro, R.S.P.P.";"DI MAURO TAMAI OPARA COMMERCIALISTI ASSOCIATI  ";"773,97";"0,00";"-";"122,00";"651,97";"BONIFICO BANCARIO";"Valido";"-";"2023";"383"
"2023";"COMPETENZA";"Mandato";"25/09/2023";"408";"Pagamento fattura n.412313918482 del 13/09/2023  - Rif. Reversale n. 668";"31 - Energia elettrica, acqua e gas";"0 - Energia elettrica, acqua e gas";"HERA COMM. SRL  ";"31,28";"1,49";"-";"0,00";"29,79";"BONIFICO BANCARIO";"Valido";"-";"2023";"382"
"2023";"COMPETENZA";"Mandato";"07/09/2023";"407";"SETTEMBRE";"10 - Indennit� mensa";"0 - Indennit� mensa";"SANTIN COSTANZA";"37,03";"-";"0,00";"0,00";"37,03";"BONIFICO BANCARIO";"Valido";"VALUTA FISSA 27/09/2023 SENZA SPESE A CARICO DEL BENEFICIARIO";"2023";"381"
"2023";"COMPETENZA";"Mandato";"07/09/2023";"406";"SETTEMBRE";"10 - Indennit� mensa";"0 - Indennit� mensa";"OZBOLT STEFANO";"31,74";"-";"0,00";"0,00";"31,74";"BONIFICO BANCARIO";"Valido";"VALUTA FISSA 27/09/2023 SENZA SPESE A CARICO DEL BENEFICIARIO";"2023";"380"
"2023";"COMPETENZA";"Mandato";"07/09/2023";"405";"SETTEMBRE";"9 - Indennit�, trattamento accessorio e lavoro straordinario";"0 - Indennit�, trattamento accessorio e lavoro straordinario";"PAVONE LUISA";"87,59";"-";"0,00";"0,00";"87,59";"BONIFICO BANCARIO";"Valido";"VALUTA FISSA 27/09/2023 SENZA SPESE A CARICO DEL BENEFICIARIO";"2023";"379"
"2023";"COMPETENZA";"Mandato";"07/09/2023";"404";"SETTEMBRE";"9 - Indennit�, trattamento accessorio e lavoro straordinario";"0 - Indennit�, trattamento accessorio e lavoro straordinario";"OZBOLT STEFANO";"146,06";"-";"0,00";"0,00";"146,06";"BONIFICO BANCARIO";"Valido";"VALUTA FISSA 27/09/2023 SENZA SPESE A CARICO DEL BENEFICIARIO";"2023";"378"
"2023";"COMPETENZA";"Mandato";"07/09/2023";"403";"STIPENDIO SETTEMBRE";"6 - Trattamento economico fondamentale";"0 - Trattamento economico fondamentale";"SANTIN COSTANZA";"4.500,55";"-";"415,96";"1.301,62";"2.782,97";"BONIFICO BANCARIO";"Valido";"VALUTA FISSA 27/09/2023 SENZA SPESE A CARICO DEL BENEFICIARIO";"2023";"377"
"2023";"COMPETENZA";"Mandato";"07/09/2023";"402";"STIPENDIO SETTEMBRE";"6 - Trattamento economico fondamentale";"0 - Trattamento economico fondamentale";"PAVONE LUISA";"880,03";"-";"21,37";"140,25";"718,41";"BONIFICO BANCARIO";"Valido";"VALUTA FISSA 27/09/2023 SENZA SPESE A CARICO DEL BENEFICIARIO";"2023";"376"
"2023";"COMPETENZA";"Mandato";"07/09/2023";"401";"STIPENDIO SETTEMBRE";"6 - Trattamento economico fondamentale";"0 - Trattamento economico fondamentale";"OZBOLT STEFANO";"2.177,01";"-";"74,56";"487,25";"1.615,20";"BONIFICO BANCARIO";"Valido";"VALUTA FISSA 27/09/2023 SENZA SPESE A CARICO DEL BENEFICIARIO";"2023";"375"
"2023";"COMPETENZA";"Mandato";"06/09/2023";"400";"IVA SPLIT PAYMENT SU FATT. 8362 - EUREKA SOC. COOPERATIVA - VINCOLATO A REVERSALE 657";"53 - Ritenute per conto terzi";"0 - Ritenute per conto terzi";"AGENZIA DELLE ENTRATE  ";"3,91";"-";"0,00";"0,00";"3,91";"MODELLO F 24";"Valido";"-";"2023";"374"
"2023";"COMPETENZA";"Mandato";"06/09/2023";"399";"IVA SPLIT PAYMENT SU FATT. 0000657604AMC12023 - MANZONI S.P.A. - VINCOLATO A REVERSALE 656";"53 - Ritenute per conto terzi";"0 - Ritenute per conto terzi";"AGENZIA DELLE ENTRATE  ";"35,20";"-";"0,00";"0,00";"35,20";"MODELLO F 24";"Valido";"-";"2023";"373"
"2023";"COMPETENZA";"Mandato";"06/09/2023";"398";"IVA SPLIT PAYMENT SU FATT. 08/PA - I.P.S.U.  DI ZONTA CALLIGARIS ANNAMARIA &C. SAS - VINCOLATO A REVERSALE 651";"53 - Ritenute per conto terzi";"0 - Ritenute per conto terzi";"AGENZIA DELLE ENTRATE  ";"95,70";"-";"0,00";"0,00";"95,70";"MODELLO F 24";"Valido";"-";"2023";"372"
"2023";"COMPETENZA";"Mandato";"06/09/2023";"397";"IVA SPLIT PAYMENT SU FATT. AP14590278 - VODAFONE ITALIA S.P.A. - VINCOLATO A REVERSALE 645";"53 - Ritenute per conto terzi";"0 - Ritenute per conto terzi";"AGENZIA DELLE ENTRATE  ";"5,28";"-";"0,00";"0,00";"5,28";"MODELLO F 24";"Valido";"-";"2023";"371"
"2023";"COMPETENZA";"Mandato";"04/09/2023";"396";"TARI 2023";"37 - Imposte, tasse, tributi e bolli";"0 - Imposte, tasse, tributi e bolli";"ESATTO SPA  ";"1.822,00";"-";"0,00";"0,00";"1.822,00";"PAGOPA";"Valido";"-";"2023";"370"
"2023";"COMPETENZA";"Mandato";"04/09/2023";"395";"Pagamento fattura n.8362 del 31/08/2023  - Rif. Reversale n. 657";"26 - Spese postali";"0 - Spese postali";"EUREKA SOC. COOPERATIVA  ";"35,26";"3,91";"-";"0,00";"31,35";"BONIFICO BANCARIO";"Valido";"-";"2023";"369"
"2023";"COMPETENZA";"Mandato";"04/09/2023";"394";"Pagamento fattura n.0000657604AMC12023 del 31/08/2023  - Rif. Reversale n. 656";"20 - Spese di rappresentanza";"0 - Spese di rappresentanza";"MANZONI S.P.A.  ";"195,20";"35,20";"-";"0,00";"160,00";"BONIFICO BANCARIO";"Valido";"-";"2023";"368"
"2023";"COMPETENZA";"Mandato";"01/09/2023";"393";"CORSO WEBINAR SANTIN - TRASPARENZA ED ORIDNI PROFESSIONALI - 5 OTTOBRE 2023";"11 - Aggiornamento e formazione";"0 - Aggiornamento e formazione";"LEGISLAZIONE TECNICA S.r.l. ";"350,00";"-";"0,00";"0,00";"350,00";"BONIFICO BANCARIO";"Valido";"-";"2023";"367"
"2023";"COMPETENZA";"Mandato";"01/09/2023";"392";"Pagamento fattura n.08/PA del 31/08/2023  - Rif. Reversale n. 651";"24 - Menutenzioni e riparazioni ordinarie: macchine, mobili e pulizie sede";"0 - Menutenzioni e riparazioni ordinarie: macchine, mobili e pulizie sede";"I.P.S.U. DI ZONTA CALLIGARIS ANNAMARIA & C SAS  ";"530,70";"95,70";"-";"0,00";"435,00";"BONIFICO BANCARIO";"Valido";"-";"2023";"366"
"2023";"COMPETENZA";"Mandato";"30/08/2023";"391";"Pagamento fattura n.AP14590278 del 27/08/2023  - Rif. Reversale n. 645";"27 - Spese telefoniche, fax e collegamento Internet";"0 - Spese telefoniche, fax e collegamento Internet";"VODAFONE ITALIA S.p.A. ";"29,28";"5,28";"-";"0,00";"24,00";"BONIFICO BANCARIO";"Valido";"-";"2023";"365"
"2023";"COMPETENZA";"Mandato";"28/08/2023";"390";"IVA SPLIT PAYMENT SU FATT. 4/214 - COOPERATIVA E.D.P. LA TRACCIA - VINCOLATO A REVERSALE 640";"53 - Ritenute per conto terzi";"0 - Ritenute per conto terzi";"AGENZIA DELLE ENTRATE  ";"1.221,55";"-";"0,00";"0,00";"1.221,55";"MODELLO F 24";"Valido";"-";"2023";"364"
"2023";"COMPETENZA";"Mandato";"28/08/2023";"389";"IVA SPLIT PAYMENT SU FATT. 712300685015 - HERA COMM. SRL - VINCOLATO A REVERSALE 637";"53 - Ritenute per conto terzi";"0 - Ritenute per conto terzi";"AGENZIA DELLE ENTRATE  ";"4,32";"-";"0,00";"0,00";"4,32";"MODELLO F 24";"Valido";"-";"2023";"363"
"2023";"COMPETENZA";"Mandato";"28/08/2023";"388";"IVA SPLIT PAYMENT SU FATT. 712300685016 - HERA COMM. SRL - VINCOLATO A REVERSALE 636";"53 - Ritenute per conto terzi";"0 - Ritenute per conto terzi";"AGENZIA DELLE ENTRATE  ";"2,45";"-";"0,00";"0,00";"2,45";"MODELLO F 24";"Valido";"-";"2023";"362"
"2023";"COMPETENZA";"Mandato";"28/08/2023";"387";"IVA SPLIT PAYMENT SU FATT. 412311686240 - HERA COMM. SRL - VINCOLATO A REVERSALE 615";"53 - Ritenute per conto terzi";"0 - Ritenute per conto terzi";"AGENZIA DELLE ENTRATE  ";"87,41";"-";"0,00";"0,00";"87,41";"MODELLO F 24";"Valido";"-";"2023";"361"
"2023";"COMPETENZA";"Mandato";"28/08/2023";"386";"Pagamento fattura n.4/214 del 28/08/2023  - Rif. Reversale n. 640";"18 - Spese gestione fotocopiatrice, fax e sistema informatico";"0 - Spese gestione fotocopiatrice, fax e sistema informatico";"COOPERATIVA E.D.P. LA TRACCIA  ";"6.774,05";"1.221,55";"-";"0,00";"5.552,50";"BONIFICO BANCARIO";"Valido";"-";"2023";"360"
"2023";"COMPETENZA";"Mandato";"25/08/2023";"385";"Pagamento fattura n.712300685015 del 31/07/2023  - Rif. Reversale n. 637";"31 - Energia elettrica, acqua e gas";"0 - Energia elettrica, acqua e gas";"HERA COMM. SRL  ";"4,32";"4,32";"-";"0,00";"0,00";"CASSA";"Valido";"-";"2023";"359"
"2023";"COMPETENZA";"Mandato";"25/08/2023";"384";"Pagamento fattura n.712300685015 del 31/07/2023 ";"31 - Energia elettrica, acqua e gas";"0 - Energia elettrica, acqua e gas";"HERA COMM. SRL  ";"43,18";"0,00";"-";"0,00";"43,18";"REGOLARIZZAZIONE";"Valido";"-";"2023";"359"
"2023";"COMPETENZA";"Mandato";"25/08/2023";"383";"Pagamento fattura n.712300685016 del 31/07/2023  - Rif. Reversale n. 636";"31 - Energia elettrica, acqua e gas";"0 - Energia elettrica, acqua e gas";"HERA COMM. SRL  ";"2,45";"2,45";"-";"0,00";"0,00";"CASSA";"Valido";"-";"2023";"358"
"2023";"COMPETENZA";"Mandato";"25/08/2023";"382";"Pagamento fattura n.712300685016 del 31/07/2023 ";"31 - Energia elettrica, acqua e gas";"0 - Energia elettrica, acqua e gas";"HERA COMM. SRL  ";"24,45";"0,00";"-";"0,00";"24,45";"REGOLARIZZAZIONE";"Valido";"-";"2023";"358"
"2023";"COMPETENZA";"Mandato";"23/08/2023";"381";"IRAP DIPENDENTI MESE DI AGOSTO 2023";"13 - Contributi previdenziali e assistenziali";"0 - Contributi previdenziali e assistenziali";"AGENZIA DELLE ENTRATE  ";"630,19";"-";"0,00";"0,00";"630,19";"MODELLO F 24";"Valido";"-";"2023";"357"
"2023";"COMPETENZA";"Mandato";"23/08/2023";"380";"INPDAP DIPENDENTI MESE DI AGOSTO 2023";"13 - Contributi previdenziali e assistenziali";"0 - Contributi previdenziali e assistenziali";"AGENZIA DELLE ENTRATE  ";"7,42";"-";"0,00";"0,00";"7,42";"MODELLO F 24";"Valido";"-";"2023";"356"
"2023";"COMPETENZA";"Mandato";"23/08/2023";"379";"INPS ENTE MESE DI AGOSTO 2023";"13 - Contributi previdenziali e assistenziali";"0 - Contributi previdenziali e assistenziali";"AGENZIA DELLE ENTRATE  ";"1.765,27";"-";"0,00";"0,00";"1.765,27";"MODELLO F 24";"Valido";"-";"2023";"355"
"2023";"COMPETENZA";"Mandato";"23/08/2023";"378";"INPS STIPENDI MESE DI AGOSTO 2023 - VINCOLATO A REVERSALI 609-611";"51 - Ritenute previdenziali e assistenziali lavoro dipendente";"0 - Ritenute previdenziali e assistenziali lavoro dipendente";"AGENZIA DELLE ENTRATE  ";"535,12";"-";"0,00";"0,00";"535,12";"MODELLO F 24";"Valido";"-";"2023";"354"
"2023";"COMPETENZA";"Mandato";"23/08/2023";"377";"IRPEF STIPENDI MESE DI AGOSTO 2023 - VINCOLATO A REVERSALI 610-612";"47 - Ritenute erariali per lavoro dipendente";"0 - Ritenute erariali per lavoro dipendente";"AGENZIA DELLE ENTRATE  ";"1.987,95";"-";"0,00";"0,00";"1.987,95";"MODELLO F 24";"Valido";"-";"2023";"353"
"2023";"COMPETENZA";"Mandato";"21/08/2023";"376";"4a RATA AUTORIZZAZIONE AL PAGAMENTO IN MODO VIRTUALE DELL'IMPOSTA DI BOLLO";"37 - Imposte, tasse, tributi e bolli";"0 - Imposte, tasse, tributi e bolli";"AGENZIA DELLE ENTRATE  ";"531,20";"-";"0,00";"0,00";"531,20";"MODELLO F 24";"Valido";"-";"2023";"352"
"2023";"COMPETENZA";"Mandato";"10/08/2023";"375";"Pagamento fattura n.412311686240 del 04/08/2023  - Rif. Reversale n. 615";"31 - Energia elettrica, acqua e gas";"0 - Energia elettrica, acqua e gas";"HERA COMM. SRL  ";"484,75";"87,41";"-";"0,00";"397,34";"BONIFICO BANCARIO";"Valido";"-";"2023";"351"
"2023";"COMPETENZA";"Mandato";"09/08/2023";"374";"AGOSTO";"10 - Indennit� mensa";"0 - Indennit� mensa";"SANTIN COSTANZA";"37,03";"-";"0,00";"0,00";"37,03";"BONIFICO BANCARIO";"Valido";"VALUTA FISSA 25/08/2023 SENZA SPESE A CARICO DEL BENEFICIARIO";"2023";"350"
"2023";"COMPETENZA";"Mandato";"09/08/2023";"373";"AGOSTO";"10 - Indennit� mensa";"0 - Indennit� mensa";"OZBOLT STEFANO";"47,61";"-";"0,00";"0,00";"47,61";"BONIFICO BANCARIO";"Valido";"VALUTA FISSA 25/08/2023 SENZA SPESE A CARICO DEL BENEFICIARIO";"2023";"349"
"2023";"COMPETENZA";"Mandato";"09/08/2023";"372";"INDENNITA' AGOSTO";"9 - Indennit�, trattamento accessorio e lavoro straordinario";"0 - Indennit�, trattamento accessorio e lavoro straordinario";"OZBOLT STEFANO";"146,06";"-";"0,00";"0,00";"146,06";"BONIFICO BANCARIO";"Valido";"VALUTA FISSA 25/08/2023 SENZA SPESE A CARICO DEL BENEFICIARIO";"2023";"348"
"2023";"COMPETENZA";"Mandato";"09/08/2023";"371";"STIPENDIO AGOSTO";"6 - Trattamento economico fondamentale";"0 - Trattamento economico fondamentale";"SANTIN COSTANZA";"4.866,49";"-";"453,33";"1.436,19";"2.976,97";"BONIFICO BANCARIO";"Valido";"VALUTA FISSA 25/08/2023 SENZA SPESE A CARICO DEL BENEFICIARIO";"2023";"347"
"2023";"COMPETENZA";"Mandato";"09/08/2023";"370";"STIPENDIO AGOSTO";"6 - Trattamento economico fondamentale";"0 - Trattamento economico fondamentale";"OZBOLT STEFANO";"2.402,88";"-";"81,79";"551,76";"1.769,33";"BONIFICO BANCARIO";"Valido";"VALUTA FISSA 25/08/2023 SENZA SPESE A CARICO DEL BENEFICIARIO";"2023";"346"
"2023";"COMPETENZA";"Mandato";"09/08/2023";"369";"RITENUTA D'ACCONTO SU FATT. 11/FE - UKOVICH LAURA - VINCOLATO A REVERSALE 607";"46 - Ritenute erariali per lavoro autonomo";"0 - Ritenute erariali per lavoro autonomo";"AGENZIA DELLE ENTRATE  ";"250,00";"-";"0,00";"0,00";"250,00";"MODELLO F 24";"Valido";"-";"2023";"345"
"2023";"COMPETENZA";"Mandato";"09/08/2023";"368";"IVA SPLIT PAYMENT SU FATT. 000019PA - GRAMAGLIA & c. SRL - VINCOLATO A REVERSALE 608";"53 - Ritenute per conto terzi";"0 - Ritenute per conto terzi";"AGENZIA DELLE ENTRATE  ";"91,96";"-";"0,00";"0,00";"91,96";"MODELLO F 24";"Valido";"-";"2023";"344"
"2023";"COMPETENZA";"Mandato";"09/08/2023";"367";"IVA SPLIT PAYMENT SU FATT. 7837 - EUREKA SOC. COOPERATIVA - VINCOLATO A REVERSALE 604";"53 - Ritenute per conto terzi";"0 - Ritenute per conto terzi";"AGENZIA DELLE ENTRATE  ";"388,26";"-";"0,00";"0,00";"388,26";"MODELLO F 24";"Valido";"-";"2023";"343"
"2023";"COMPETENZA";"Mandato";"09/08/2023";"366";"IVA SPLIT PAYMENT SU FATT. 7830 - EUREKA SOC. COOPERATIVA - VINCOLATO A REVERSALE 603";"53 - Ritenute per conto terzi";"0 - Ritenute per conto terzi";"AGENZIA DELLE ENTRATE  ";"8,22";"-";"0,00";"0,00";"8,22";"MODELLO F 24";"Valido";"-";"2023";"342"
"2023";"COMPETENZA";"Mandato";"08/08/2023";"365";"Pagamento fattura n.000019PA del 31/07/2023  - Rif. Reversale n. 608";"18 - Spese gestione fotocopiatrice, fax e sistema informatico";"0 - Spese gestione fotocopiatrice, fax e sistema informatico";"GRAMAGLIA & C. SRL  ";"509,96";"91,96";"-";"0,00";"418,00";"BONIFICO BANCARIO";"Valido";"-";"2023";"341"
"2023";"COMPETENZA";"Mandato";"08/08/2023";"364";"Pagamento fattura n.11/FE del 07/08/2023  - Rif. Reversale n. 607";"5 - Indennit� di carica e gettoni di presenza organi istituzionali";"0 - Indennit� di carica e gettoni di presenza organi istituzionali";"UKOVICH  LAURA";"1.525,00";"0,00";"-";"250,00";"1.275,00";"BONIFICO BANCARIO";"Valido";"-";"2023";"340"
"2023";"COMPETENZA";"Mandato";"07/08/2023";"363";"Pagamento fattura n.1 del 31/07/2023 ";"15 - Spese pubblicazione e spedizione Bollettino, addetto stampa";"0 - Spese pubblicazione e spedizione Bollettino, addetto stampa";"DALL'ARMELLINA ILARIA ";"2.000,00";"0,00";"-";"0,00";"2.000,00";"BONIFICO BANCARIO";"Valido";"-";"2023";"339"
"2023";"COMPETENZA";"Mandato";"07/08/2023";"362";"Pagamento fattura n.7837 del 31/07/2023  - Rif. Reversale n. 604";"15 - Spese pubblicazione e spedizione Bollettino, addetto stampa";"0 - Spese pubblicazione e spedizione Bollettino, addetto stampa";"EUREKA SOC. COOPERATIVA  ";"2.153,06";"388,26";"-";"0,00";"1.764,80";"BONIFICO BANCARIO";"Valido";"-";"2023";"338"
"2023";"COMPETENZA";"Mandato";"07/08/2023";"361";"Pagamento fattura n.7830 del 31/07/2023  - Rif. Reversale n. 603";"26 - Spese postali";"0 - Spese postali";"EUREKA SOC. COOPERATIVA  ";"45,57";"8,22";"-";"0,00";"37,35";"BONIFICO BANCARIO";"Valido";"-";"2023";"337"
"2023";"COMPETENZA";"Mandato";"04/08/2023";"360";"IVA SPLIT PAYMENT SU FATT. FT000390 - INFO.ERA SRL - VINCOLATO A REVERSALE 597";"53 - Ritenute per conto terzi";"0 - Ritenute per conto terzi";"AGENZIA DELLE ENTRATE  ";"114,95";"-";"0,00";"0,00";"114,95";"MODELLO F 24";"Valido";"-";"2023";"336"
"2023";"COMPETENZA";"Mandato";"04/08/2023";"359";"IVA SPLIT PAYMENT SU FATT. FT000430 - INFO.ERA SRL - VINCOLATO A REVERSALE 596";"53 - Ritenute per conto terzi";"0 - Ritenute per conto terzi";"AGENZIA DELLE ENTRATE  ";"51,92";"-";"0,00";"0,00";"51,92";"MODELLO F 24";"Valido";"-";"2023";"335"
"2023";"COMPETENZA";"Mandato";"04/08/2023";"358";"IVA SPLIT PAYMENT SU FATT. 0000656703AMC12023 - MANZONI S.P.A. - VINCOLATO A REVERSALE 595";"53 - Ritenute per conto terzi";"0 - Ritenute per conto terzi";"AGENZIA DELLE ENTRATE  ";"35,20";"-";"0,00";"0,00";"35,20";"MODELLO F 24";"Valido";"-";"2023";"334"
"2023";"COMPETENZA";"Mandato";"04/08/2023";"357";"IVA SPLIT PAYMENT SU FATT. FT000429 - INFO.ERA SRL - VINCOLATO A REVERSALE 594";"53 - Ritenute per conto terzi";"0 - Ritenute per conto terzi";"AGENZIA DELLE ENTRATE  ";"174,68";"-";"0,00";"0,00";"174,68";"MODELLO F 24";"Valido";"-";"2023";"333"
"2023";"COMPETENZA";"Mandato";"04/08/2023";"356";"IVA SPLIT PAYMENT SU FATT. 07/PA - I.P.S.U. DI ZONTA CALLIGARI S ANNAMARIA & C SAS - VNCOLATO A REVERSALE 593";"53 - Ritenute per conto terzi";"0 - Ritenute per conto terzi";"AGENZIA DELLE ENTRATE  ";"95,70";"-";"0,00";"0,00";"95,70";"MODELLO F 24";"Valido";"-";"2023";"332"
"2023";"COMPETENZA";"Mandato";"04/08/2023";"355";"IVA SPLIT PAYMENT SU FATT. 000203 - MOSETTI TECNICHE GRAFICHE SRL - VINCOLATO A REVERSALE 584";"53 - Ritenute per conto terzi";"0 - Ritenute per conto terzi";"AGENZIA DELLE ENTRATE  ";"696,91";"-";"0,00";"0,00";"696,91";"MODELLO F 24";"Valido";"-";"2023";"331"
"2023";"COMPETENZA";"Mandato";"04/08/2023";"354";"IVA SPLIT PAYMENT SU FATT. 2023S3001359 - PROCED S.R.L. - VINCOLATO A REVERSALE 583";"53 - Ritenute per conto terzi";"0 - Ritenute per conto terzi";"AGENZIA DELLE ENTRATE  ";"132,10";"-";"0,00";"0,00";"132,10";"MODELLO F 24";"Valido";"-";"2023";"330"
"2023";"COMPETENZA";"Mandato";"04/08/2023";"353";"IRAP STIPENDI LUGLIO";"13 - Contributi previdenziali e assistenziali";"0 - Contributi previdenziali e assistenziali";"AGENZIA DELLE ENTRATE  ";"738,99";"-";"0,00";"0,00";"738,99";"MODELLO F 24";"Valido";"-";"2023";"329"
"2023";"COMPETENZA";"Mandato";"04/08/2023";"352";"INPDAP STIPENDI LUGLIO";"13 - Contributi previdenziali e assistenziali";"0 - Contributi previdenziali e assistenziali";"AGENZIA DELLE ENTRATE  ";"8,70";"-";"0,00";"0,00";"8,70";"MODELLO F 24";"Valido";"-";"2023";"328"
"2023";"COMPETENZA";"Mandato";"04/08/2023";"351";"INPS ENTE LUGLIO";"13 - Contributi previdenziali e assistenziali";"0 - Contributi previdenziali e assistenziali";"AGENZIA DELLE ENTRATE  ";"2.070,04";"-";"0,00";"0,00";"2.070,04";"MODELLO F 24";"Valido";"-";"2023";"327"
"2023";"COMPETENZA";"Mandato";"04/08/2023";"350";"INPS STIPENDI LUGLIO - VINCOLATO A REVERSALI 545 E 548";"51 - Ritenute previdenziali e assistenziali lavoro dipendente";"0 - Ritenute previdenziali e assistenziali lavoro dipendente";"AGENZIA DELLE ENTRATE  ";"801,71";"-";"0,00";"0,00";"801,71";"MODELLO F 24";"Valido";"-";"2023";"326"
"2023";"COMPETENZA";"Mandato";"04/08/2023";"349";"IRPEF STIPENDI LUGLIO - PARZIALMENTE VINCOLATO A REVERSALI 546 E 549";"47 - Ritenute erariali per lavoro dipendente";"0 - Ritenute erariali per lavoro dipendente";"AGENZIA DELLE ENTRATE  ";"1.878,12";"-";"0,00";"0,00";"1.878,12";"MODELLO F 24";"Valido";"-";"2023";"325"
"2023";"COMPETENZA";"Mandato";"03/08/2023";"348";"Pagamento fattura n.FT000390 del 31/07/2023  - Rif. Reversale n. 597";"18 - Spese gestione fotocopiatrice, fax e sistema informatico";"0 - Spese gestione fotocopiatrice, fax e sistema informatico";"INFO.ERA SRL  ";"637,45";"114,95";"-";"0,00";"522,50";"BONIFICO BANCARIO";"Valido";"-";"2023";"324"
"2023";"COMPETENZA";"Mandato";"03/08/2023";"347";"Pagamento fattura n.FT000430 del 31/07/2023  - Rif. Reversale n. 596";"18 - Spese gestione fotocopiatrice, fax e sistema informatico";"0 - Spese gestione fotocopiatrice, fax e sistema informatico";"INFO.ERA SRL  ";"287,92";"51,92";"-";"0,00";"236,00";"BONIFICO BANCARIO";"Valido";"-";"2023";"323"
"2023";"COMPETENZA";"Mandato";"03/08/2023";"346";"Pagamento fattura n.0000656703AMC12023 del 31/07/2023  - Rif. Reversale n. 595";"20 - Spese di rappresentanza";"0 - Spese di rappresentanza";"MANZONI S.P.A.  ";"195,20";"35,20";"-";"0,00";"160,00";"BONIFICO BANCARIO";"Valido";"-";"2023";"322"
"2023";"COMPETENZA";"Mandato";"03/08/2023";"345";"QUOTE FNOMCEO 2A RATA";"44 - Quota FNOMCeO per tassa annuale a ruolo";"0 - Quota FNOMCeO per tassa annuale a ruolo";"FNOMCEO  ";"22.632,00";"-";"0,00";"0,00";"22.632,00";"PAGOPA";"Valido";"-";"2023";"321"
"2023";"COMPETENZA";"Mandato";"03/08/2023";"344";"Pagamento fattura n.FT000429 del 31/07/2023  - Rif. Reversale n. 594";"18 - Spese gestione fotocopiatrice, fax e sistema informatico";"0 - Spese gestione fotocopiatrice, fax e sistema informatico";"INFO.ERA SRL  ";"968,68";"174,68";"-";"0,00";"794,00";"BONIFICO BANCARIO";"Valido";"-";"2023";"320"
"2023";"COMPETENZA";"Mandato";"03/08/2023";"343";"Pagamento fattura n.07/PA del 31/07/2023  - Rif. Reversale n. 593";"24 - Menutenzioni e riparazioni ordinarie: macchine, mobili e pulizie sede";"0 - Menutenzioni e riparazioni ordinarie: macchine, mobili e pulizie sede";"I.P.S.U. DI ZONTA CALLIGARIS ANNAMARIA & C SAS  ";"530,70";"95,70";"-";"0,00";"435,00";"BONIFICO BANCARIO";"Valido";"-";"2023";"319"
"2023";"COMPETENZA";"Mandato";"31/07/2023";"342";"Pagamento fattura n.000203 del 27/07/2023  - Rif. Reversale n. 584";"15 - Spese pubblicazione e spedizione Bollettino, addetto stampa";"0 - Spese pubblicazione e spedizione Bollettino, addetto stampa";"MOSETTI TECNICHE GRAFICHE SRL ";"3.864,66";"696,91";"-";"0,00";"3.167,75";"BONIFICO BANCARIO";"Valido";"-";"2023";"318"
"2023";"COMPETENZA";"Mandato";"31/07/2023";"341";"Pagamento fattura n.2023S3001359 del 27/07/2023  - Rif. Reversale n. 583";"17 - Cancelleria, stampati e rilegatura";"0 - Cancelleria, stampati e rilegatura";"PROCED S.R.L.  ";"732,57";"132,10";"-";"0,00";"600,47";"BONIFICO BANCARIO";"Valido";"-";"2023";"317"
"2023";"COMPETENZA";"Mandato";"26/07/2023";"340";"POLIZZA TUTELA LEGALE N. 753016256";"3 - Spese assicurazione componenti organi istituzionali";"0 - Spese assicurazione componenti organi istituzionali";"TIEGI ASSICURAZIONI SNC  ";"1.050,00";"-";"0,00";"0,00";"1.050,00";"BONIFICO BANCARIO";"Valido";"-";"2023";"316"
"2023";"COMPETENZA";"Mandato";"26/07/2023";"339";"POLIZZA AZ MULTIRISCHI N. 753016404";"3 - Spese assicurazione componenti organi istituzionali";"0 - Spese assicurazione componenti organi istituzionali";"TIEGI ASSICURAZIONI SNC  ";"4.200,00";"-";"0,00";"0,00";"4.200,00";"BONIFICO BANCARIO";"Valido";"-";"2023";"315"
"2023";"COMPETENZA";"Mandato";"26/07/2023";"338";"CARTA CONTABILE 33";"36 - Commissioni e spese bancarie";"0 - Commissioni e spese bancarie";"MONTE DEI PASCHI DI SIENA  ";"2,00";"-";"0,00";"0,00";"2,00";"COPERTURA SOSPESI";"Valido";"-";"2023";"314"
"2023";"COMPETENZA";"Mandato";"26/07/2023";"337";"CARTA CONTABILE 32";"36 - Commissioni e spese bancarie";"0 - Commissioni e spese bancarie";"MONTE DEI PASCHI DI SIENA  ";"500,00";"-";"0,00";"0,00";"500,00";"COPERTURA SOSPESI";"Valido";"-";"2023";"313"
"2023";"COMPETENZA";"Mandato";"19/07/2023";"336";"IRPEF A CREDITO 730";"47 - Ritenute erariali per lavoro dipendente";"0 - Ritenute erariali per lavoro dipendente";"OZBOLT STEFANO";"363,00";"-";"0,00";"0,00";"363,00";"BONIFICO BANCARIO";"Valido";"VALUTA FISSA AL 27/07/2023 SENZA SPESE A CARICO DEL BENEFICIARIO";"2023";"312"
"2023";"COMPETENZA";"Mandato";"19/07/2023";"335";"IRPEF A CREDITO 730";"47 - Ritenute erariali per lavoro dipendente";"0 - Ritenute erariali per lavoro dipendente";"SANTIN COSTANZA";"81,00";"-";"0,00";"0,00";"81,00";"BONIFICO BANCARIO";"Valido";"VALUTA FISSA AL 27/07/2023 SENZA SPESE A CARICO DEL BENEFICIARIO";"2023";"311"
"2023";"COMPETENZA";"Mandato";"19/07/2023";"334";"LUGLIO";"10 - Indennit� mensa";"0 - Indennit� mensa";"SANTIN COSTANZA";"37,03";"-";"0,00";"0,00";"37,03";"BONIFICO BANCARIO";"Valido";"VALUTA FISSA AL 27/07/2023 SENZA SPESE A CARICO DEL BENEFICIARIO";"2023";"310"
"2023";"COMPETENZA";"Mandato";"19/07/2023";"333";"STIPENDIO LUGLIO";"6 - Trattamento economico fondamentale";"0 - Trattamento economico fondamentale";"SANTIN COSTANZA";"4.448,76";"-";"410,65";"1.285,14";"2.752,97";"BONIFICO BANCARIO";"Valido";"VALUTA FISSA AL 27/07/2023 SENZA SPESE A CARICO DEL BENEFICIARIO";"2023";"309"
"2023";"COMPETENZA";"Mandato";"19/07/2023";"332";"LUGLIO";"10 - Indennit� mensa";"0 - Indennit� mensa";"OZBOLT STEFANO";"37,03";"-";"0,00";"0,00";"37,03";"BONIFICO BANCARIO";"Valido";"VALUTA FISSA AL 27/07/2023 SENZA SPESE A CARICO DEL BENEFICIARIO";"2023";"307"
"2023";"COMPETENZA";"Mandato";"19/07/2023";"331";"FONDO INCENTIVAZIONE, INDENNITA' E STRAORDINARI";"9 - Indennit�, trattamento accessorio e lavoro straordinario";"0 - Indennit�, trattamento accessorio e lavoro straordinario";"OZBOLT STEFANO";"2.697,02";"-";"595,17";"0,00";"2.101,85";"BONIFICO BANCARIO";"Valido";"VALUTA FISSA AL 27/07/2023 SENZA SPESE A CARICO DEL BENEFICIARIO";"2023";"306"
"2023";"COMPETENZA";"Mandato";"19/07/2023";"330";"STIPENDIO LUGLIO";"6 - Trattamento economico fondamentale";"0 - Trattamento economico fondamentale";"OZBOLT STEFANO";"2.145,16";"-";"391,06";"1.036,98";"717,12";"BONIFICO BANCARIO";"Valido";"VALUTA FISSA AL 27/07/2023 SENZA SPESE A CARICO DEL BENEFICIARIO";"2023";"305"
"2023";"COMPETENZA";"Mandato";"18/07/2023";"329";"SALDO IRAP";"13 - Contributi previdenziali e assistenziali";"0 - Contributi previdenziali e assistenziali";"AGENZIA DELLE ENTRATE  ";"888,00";"-";"0,00";"0,00";"888,00";"MODELLO F 24";"Valido";"-";"2023";"304"
"2023";"COMPETENZA";"Mandato";"17/07/2023";"328";"IVA SPLIT PAYMENT SU FATT. 13/PA - SISTEMI INTEGRATI ANTINCENDIO E SICUREZZA - VINCOLATO A REVERSALE 533";"53 - Ritenute per conto terzi";"0 - Ritenute per conto terzi";"AGENZIA DELLE ENTRATE  ";"22,00";"-";"0,00";"0,00";"22,00";"MODELLO F 24";"Valido";"-";"2023";"303"
"2023";"COMPETENZA";"Mandato";"17/07/2023";"327";"IVA SPLIT PAYMENT SU FATT. 000018PA - GRAMAGLIA & C. SRL - VINCOLATO A REVERSALE";"53 - Ritenute per conto terzi";"0 - Ritenute per conto terzi";"AGENZIA DELLE ENTRATE  ";"91,96";"-";"0,00";"0,00";"91,96";"MODELLO F 24";"Valido";"-";"2023";"302"
"2023";"COMPETENZA";"Mandato";"17/07/2023";"326";"IVA SPLIT PAYMENTI SU FATT. 412310205219 - HERA COMM-. SRL - VINCOLATO A REVERSALE 526";"53 - Ritenute per conto terzi";"0 - Ritenute per conto terzi";"AGENZIA DELLE ENTRATE  ";"1,58";"-";"0,00";"0,00";"1,58";"MODELLO F 24";"Valido";"-";"2023";"301"
"2023";"COMPETENZA";"Mandato";"17/07/2023";"325";"IVA SPLIT PAYMENT SU FATT. 0000058/F - STABILIMENTO TRIESTINO DI SORVEGLIANZA E CHIUSURA SRL - VINCOLATO A REVERSALE 523";"53 - Ritenute per conto terzi";"0 - Ritenute per conto terzi";"AGENZIA DELLE ENTRATE  ";"39,60";"-";"0,00";"0,00";"39,60";"MODELLO F 24";"Valido";"-";"2023";"300"
"2023";"COMPETENZA";"Mandato";"17/07/2023";"324";"IVA SPLIT PAYMENT SU FATT. 8D00120026 - TELECOM ITALIA S.P.A. - VINCOLATO A REVERSALE 520";"53 - Ritenute per conto terzi";"0 - Ritenute per conto terzi";"AGENZIA DELLE ENTRATE  ";"36,14";"-";"0,00";"0,00";"36,14";"MODELLO F 24";"Valido";"-";"2023";"299"
"2023";"COMPETENZA";"Mandato";"17/07/2023";"323";"IVA SPLIT PAYMENT SU FATT. 8D00118439 - TELECOM ITALIA S.P.A. - VINCOLATO A REVERSALE 519";"53 - Ritenute per conto terzi";"0 - Ritenute per conto terzi";"AGENZIA DELLE ENTRATE  ";"23,33";"-";"0,00";"0,00";"23,33";"MODELLO F 24";"Valido";"-";"2023";"298"
"2023";"COMPETENZA";"Mandato";"17/07/2023";"322";"IVA SPLIT PAYMENT SU FATT. 8D00119924 - TELECOM ITALIA S.P.A. - VINCOLATO A REVERSALE 518";"53 - Ritenute per conto terzi";"0 - Ritenute per conto terzi";"AGENZIA DELLE ENTRATE  ";"30,80";"-";"0,00";"0,00";"30,80";"MODELLO F 24";"Valido";"-";"2023";"297"
"2023";"COMPETENZA";"Mandato";"17/07/2023";"321";"Pagamento fattura n.13PA del 12/07/2023  - Rif. Reversale n. 533";"24 - Menutenzioni e riparazioni ordinarie: macchine, mobili e pulizie sede";"0 - Menutenzioni e riparazioni ordinarie: macchine, mobili e pulizie sede";"SISTEMI INTEGRATI ANTINCENDIO E SICUREZZA  ";"122,00";"22,00";"-";"0,00";"100,00";"BONIFICO BANCARIO";"Valido";"-";"2023";"296"
"2023";"COMPETENZA";"Mandato";"17/07/2023";"320";"Pagamento fattura n.000018PA del 13/07/2023  - Rif. Reversale n. 532";"24 - Menutenzioni e riparazioni ordinarie: macchine, mobili e pulizie sede";"0 - Menutenzioni e riparazioni ordinarie: macchine, mobili e pulizie sede";"GRAMAGLIA & C. SRL  ";"509,96";"91,96";"-";"0,00";"418,00";"BONIFICO BANCARIO";"Valido";"-";"2023";"295"
"2023";"COMPETENZA";"Mandato";"14/07/2023";"319";"Pagamento fattura n.412310205219 del 12/07/2023  - Rif. Reversale n. 526";"31 - Energia elettrica, acqua e gas";"0 - Energia elettrica, acqua e gas";"HERA COMM. SRL  ";"33,27";"1,58";"-";"0,00";"31,69";"BONIFICO BANCARIO";"Valido";"-";"2023";"294"
"2023";"COMPETENZA";"Mandato";"12/07/2023";"318";"Pagamento fattura n.0000058/F del 30/06/2023  - Rif. Reversale n. 523";"24 - Menutenzioni e riparazioni ordinarie: macchine, mobili e pulizie sede";"0 - Menutenzioni e riparazioni ordinarie: macchine, mobili e pulizie sede";"STABILIMENTO TRIESTINO DI SORVEGLIANZA E CHIUSURA SRL  ";"219,60";"39,60";"-";"0,00";"180,00";"BONIFICO BANCARIO";"Valido";"-";"2023";"293"
"2023";"COMPETENZA";"Mandato";"11/07/2023";"317";"Pagamento fattura n.8D00120026 del 10/06/2023  - Rif. Reversale n. 520";"27 - Spese telefoniche, fax e collegamento Internet";"0 - Spese telefoniche, fax e collegamento Internet";"TELECOM ITALIA S.P.A.  ";"36,14";"36,14";"-";"0,00";"0,00";"CASSA";"Valido";"-";"2023";"292"
"2023";"COMPETENZA";"Mandato";"11/07/2023";"316";"Pagamento fattura n.8D00120026 del 10/06/2023 ";"27 - Spese telefoniche, fax e collegamento Internet";"0 - Spese telefoniche, fax e collegamento Internet";"TELECOM ITALIA S.P.A.  ";"164,27";"0,00";"-";"0,00";"164,27";"REGOLARIZZAZIONE";"Valido";"-";"2023";"292"
"2023";"COMPETENZA";"Mandato";"11/07/2023";"315";"Pagamento fattura n.8D00118439 del 10/06/2023  - Rif. Reversale n. 519";"27 - Spese telefoniche, fax e collegamento Internet";"0 - Spese telefoniche, fax e collegamento Internet";"TELECOM ITALIA S.P.A.  ";"23,33";"23,33";"-";"0,00";"0,00";"CASSA";"Valido";"-";"2023";"291"
"2023";"COMPETENZA";"Mandato";"11/07/2023";"314";"Pagamento fattura n.8D00118439 del 10/06/2023 ";"27 - Spese telefoniche, fax e collegamento Internet";"0 - Spese telefoniche, fax e collegamento Internet";"TELECOM ITALIA S.P.A.  ";"106,08";"0,00";"-";"0,00";"106,08";"REGOLARIZZAZIONE";"Valido";"-";"2023";"291"
"2023";"COMPETENZA";"Mandato";"11/07/2023";"313";"Pagamento fattura n.8D00119924 del 10/06/2023  - Rif. Reversale n. 518";"27 - Spese telefoniche, fax e collegamento Internet";"0 - Spese telefoniche, fax e collegamento Internet";"TELECOM ITALIA S.P.A.  ";"30,80";"30,80";"-";"0,00";"0,00";"CASSA";"Valido";"-";"2023";"290"
"2023";"COMPETENZA";"Mandato";"11/07/2023";"312";"Pagamento fattura n.8D00119924 del 10/06/2023 ";"27 - Spese telefoniche, fax e collegamento Internet";"0 - Spese telefoniche, fax e collegamento Internet";"TELECOM ITALIA S.P.A.  ";"140,00";"0,00";"-";"0,00";"140,00";"REGOLARIZZAZIONE";"Valido";"-";"2023";"290"
"2023";"COMPETENZA";"Mandato";"05/07/2023";"311";"RITENUTA D'ACCONTO SU FATT. 240/00/2023 - DIMAURO TAMAI OPARA COMMERICALISTI ASSOCIATI - VINCOLATO A REVERSALE 500";"46 - Ritenute erariali per lavoro autonomo";"0 - Ritenute erariali per lavoro autonomo";"AGENZIA DELLE ENTRATE  ";"463,20";"-";"0,00";"0,00";"463,20";"MODELLO F 24";"Valido";"-";"2023";"289"
"2023";"COMPETENZA";"Mandato";"05/07/2023";"310";"IVA SPLIT PAYMENT SU FATT. 0000655484AMC12023 - MANZONI S.P.A. - VINCOLATO A REVERSALE 504";"53 - Ritenute per conto terzi";"0 - Ritenute per conto terzi";"AGENZIA DELLE ENTRATE  ";"70,84";"-";"0,00";"0,00";"70,84";"MODELLO F 24";"Valido";"-";"2023";"288"
"2023";"COMPETENZA";"Mandato";"05/07/2023";"309";"IVA SPLIT PAYMENT SU FATT. 0000655483AMC12023 - MANZONI S.P.A. - VINCOLATO A REVERSALE 503";"53 - Ritenute per conto terzi";"0 - Ritenute per conto terzi";"AGENZIA DELLE ENTRATE  ";"37,84";"-";"0,00";"0,00";"37,84";"MODELLO F 24";"Valido";"-";"2023";"287"
"2023";"COMPETENZA";"Mandato";"05/07/2023";"308";"IVA SPLIT PAYMENT SU FATT. 230106/FEV - GRUPPO ILLIRIA S.A.P. - VINCOLATO A REVERSALE 499";"53 - Ritenute per conto terzi";"0 - Ritenute per conto terzi";"AGENZIA DELLE ENTRATE  ";"16,86";"-";"0,00";"0,00";"16,86";"MODELLO F 24";"Valido";"-";"2023";"286"
"2023";"COMPETENZA";"Mandato";"05/07/2023";"307";"IVA SPLIT PAYMENT SU FATT. 06/PA - I.P.S.U. DI ZONTA CALLIGARIS ANNAMARIA & C. SAS - VINCOLATO A REVERSALE 498";"53 - Ritenute per conto terzi";"0 - Ritenute per conto terzi";"AGENZIA DELLE ENTRATE  ";"95,70";"-";"0,00";"0,00";"95,70";"MODELLO F 24";"Valido";"-";"2023";"285"
"2023";"COMPETENZA";"Mandato";"05/07/2023";"306";"IVA SPLIT PAYMENT SU FATT. AP10911065 - VODAFONE ITALIA .P.A. - VINCOLATO A REVERSALE 496";"53 - Ritenute per conto terzi";"0 - Ritenute per conto terzi";"AGENZIA DELLE ENTRATE  ";"5,28";"-";"0,00";"0,00";"5,28";"MODELLO F 24";"Valido";"-";"2023";"284"
"2023";"COMPETENZA";"Mandato";"05/07/2023";"305";"Pagamento fattura n.0000655484AMC12023 del 30/06/2023  - Rif. Reversale n. 504";"20 - Spese di rappresentanza";"0 - Spese di rappresentanza";"MANZONI S.P.A.  ";"392,84";"70,84";"-";"0,00";"322,00";"BONIFICO BANCARIO";"Valido";"-";"2023";"283"
"2023";"COMPETENZA";"Mandato";"05/07/2023";"304";"Pagamento fattura n.0000655483AMC12023 del 30/06/2023  - Rif. Reversale n. 503";"20 - Spese di rappresentanza";"0 - Spese di rappresentanza";"MANZONI S.P.A.  ";"209,84";"37,84";"-";"0,00";"172,00";"BONIFICO BANCARIO";"Valido";"-";"2023";"282"
"2023";"COMPETENZA";"Mandato";"03/07/2023";"303";"Pagamento fattura n.240/00/2023 del 30/06/2023  - Rif. Reversale n. 500";"32 - Spese legali, consulenza del lavoro, R.S.P.P.";"0 - Spese legali, consulenza del lavoro, R.S.P.P.";"DI MAURO TAMAI OPARA COMMERCIALISTI ASSOCIATI  ";"2.938,54";"0,00";"-";"463,20";"2.475,34";"BONIFICO BANCARIO";"Valido";"-";"2023";"281"
"2023";"COMPETENZA";"Mandato";"03/07/2023";"302";"Pagamento fattura n.230106/FEV del 30/06/2023  - Rif. Reversale n. 499";"20 - Spese di rappresentanza";"0 - Spese di rappresentanza";"GRUPPO ILLIRIA S.p.A. ";"185,50";"16,86";"-";"0,00";"168,64";"BONIFICO BANCARIO";"Valido";"-";"2023";"280"
"2023";"COMPETENZA";"Mandato";"03/07/2023";"301";"Pagamento fattura n.06/PA del 30/06/2023  - Rif. Reversale n. 498";"24 - Menutenzioni e riparazioni ordinarie: macchine, mobili e pulizie sede";"0 - Menutenzioni e riparazioni ordinarie: macchine, mobili e pulizie sede";"I.P.S.U. DI ZONTA CALLIGARIS ANNAMARIA & C SAS  ";"530,70";"95,70";"-";"0,00";"435,00";"BONIFICO BANCARIO";"Valido";"-";"2023";"279"
